fUST/lending_fUST_20250720
["ID","MTS","AMOUNT","RATE_DAILY","PERIOD"]
[373316605,1752943839417,-1170.39,0.00016631,2]
[373316607,1752943839426,-460.0,0.00016631,2]
[373316609,1752943839437,-525.57,0.00016631,2]
[373316611,1752943839446,-460.0,0.00016631,2]
[373316613,1752943839455,-888.54,0.00016631,2]
[373316615,1752943839465,-460.0,0.00016631,2]
[373316617,1752943839475,-460.0,0.00016631,2]
[373316619,1752943839485,-460.0,0.00016631,2]
[373316621,1752943839495,-460.0,0.00016631,2]
[373316623,1752943839505,-460.0,0.00016631,2]
[373316625,1752943839515,-460.0,0.00016631,2]
[373316627,1752943839524,-460.0,0.00016631,2]
[373316629,1752943839533,-460.0,0.00016631,2]
[373316631,1752943839543,-460.0,0.00016631,2]
[373316633,1752943839552,-460.0,0.00016631,2]
[373316635,1752943839562,-160.0,0.00016631,2]
[373316637,1752943839574,-460.0,0.00016631,2]
[373316639,1752943839584,-460.0,0.00016631,2]
[373316642,1752943839593,-565.44,0.00016631,2]
[373316644,1752943839603,-460.0,0.00016631,2]
[373316645,1752943839613,-460.0,0.00016632,2]
[373316647,1752943839622,-460.0,0.00016632,2]
[373316649,1752943839631,-460.0,0.00016632,2]
[373316651,1752943839640,-460.0,0.00016632,2]
[373316653,1752943839650,-460.0,0.00016632,2]
[373316655,1752943839660,-460.0,0.00016632,2]
[373316658,1752943839671,-460.0,0.00016632,2]
[373316660,1752943839681,-460.0,0.00016632,2]
[373316662,1752943839692,-460.0,0.00016632,2]
[373316664,1752943839701,-460.0,0.00016632,2]
[373316666,1752943839711,-460.0,0.00016632,2]
[373316668,1752943839725,-460.0,0.00016632,2]
[373316670,1752943839734,-460.0,0.00016632,2]
[373316672,1752943839744,-460.0,0.00016632,2]
[373316674,1752943839753,-460.0,0.00016632,2]
[373316676,1752943839764,-460.0,0.00016632,2]
[373316678,1752943839774,-460.0,0.00016632,2]
[373316680,1752943839784,-460.0,0.00016632,2]
[373316682,1752943839795,-460.0,0.00016632,2]
[373316684,1752943839804,-406.62575338,0.00016632,2]
[373316686,1752943839813,-425.48832527,0.00016632,2]
[373316688,1752943839822,-460.0,0.00016632,2]
[373316690,1752943839831,-460.0,0.00016632,2]
[373316692,1752943839841,-606.41,0.00016632,2]
[373316694,1752943839850,-460.0,0.00016632,2]
[373316696,1752943839860,-460.0,0.00016632,2]
[373316698,1752943839869,-460.0,0.00016632,2]
[373316700,1752943839879,-460.0,0.00016632,2]
[373316702,1752943839888,-460.0,0.00016632,2]
[373316704,1752943839897,-460.0,0.00016632,2]
[373316706,1752943839907,-341.92607919,0.00016632,2]
[373316708,1752943839916,-460.0,0.00016632,2]
[373316710,1752943839926,-460.0,0.00016632,2]
[373316711,1752943839935,-460.0,0.00016632,2]
[373316713,1752943839945,-1762.36,0.00016632,2]
[373316715,1752943839955,-460.0,0.00016632,2]
[373316717,1752943839967,-575.61,0.00016632,2]
[373316719,1752943839976,-460.0,0.00016632,2]
[373316721,1752943839986,-468.29,0.00016632,2]
[373316724,1752943839996,-460.0,0.00016632,2]
[373316726,1752943840006,-460.0,0.00016632,2]
[373316727,1752943840015,-460.0,0.00016632,2]
[373316730,1752943840025,-460.0,0.00016632,2]
[373316732,1752943840035,-460.0,0.00016632,2]
[373316734,1752943840045,-750.54,0.00016632,2]
[373316736,1752943840054,-460.0,0.00016632,2]
[373316738,1752943840064,-460.0,0.00016632,2]
[373316740,1752943840073,-460.0,0.00016632,2]
[373316742,1752943840083,-460.0,0.00016632,2]
[373316744,1752943840093,-460.0,0.00016632,2]
[373316746,1752943840102,-460.0,0.00016632,2]
[373316748,1752943840111,-574.55,0.00016632,2]
[373316749,1752943840120,-460.0,0.00016632,2]
[373316752,1752943840130,-460.0,0.00016632,2]
[373316754,1752943840139,-565.44,0.00016632,2]
[373316756,1752943840149,-565.44,0.00016632,2]
[373316758,1752943840159,-565.44,0.00016632,2]
[373316760,1752943840168,-565.44,0.00016632,2]
[373316762,1752943840177,-565.44,0.00016632,2]
[373316764,1752943840187,-565.44,0.00016632,2]
[373316766,1752943840198,-565.44,0.00016632,2]
[373316768,1752943840207,-565.44,0.00016632,2]
[373316770,1752943840216,-565.44,0.00016632,2]
[373316772,1752943840225,-565.44,0.00016632,2]
[373316774,1752943840234,-565.44,0.00016632,2]
[373316776,1752943840244,-565.44,0.00016632,2]
[373316778,1752943840253,-565.44,0.00016632,2]
[373316780,1752943840263,-565.44,0.00016632,2]
[373316782,1752943840272,-565.44,0.00016632,2]
[373316784,1752943840282,-460.0,0.00016632,2]
[373316786,1752943840291,-460.0,0.00016632,2]
[373316788,1752943840300,-312642.00898916,0.00016633,2]
[373316790,1752943840310,-151.0,0.00016633,2]
[373316792,1752943840319,-151.0,0.00016633,2]
[373316793,1752943840330,-151.0,0.00016633,2]
[373316796,1752943840340,-151.0,0.00016633,2]
[373316797,1752943840350,-175.627756,0.00016633,2]
[373316799,1752943840359,-175.627756,0.00016633,2]
[373316801,1752943840369,-500.0,0.00016673,2]
[373316804,1752943840378,-500.0,0.00016673,2]
[373316805,1752943840388,-565.44,0.0001673,2]
[373316807,1752943840397,-460.0,0.00016731,2]
[373316809,1752943840407,-460.0,0.00016731,2]
[373316812,1752943840417,-460.0,0.00016731,2]
[373316813,1752943840427,-460.0,0.00016731,2]
[373316815,1752943840436,-460.0,0.00016731,2]
[373316817,1752943840446,-460.0,0.00016731,2]
[373316820,1752943840456,-460.0,0.00016731,2]
[373316821,1752943840465,-555.31653507,0.00016731,2]
[373316823,1752943840474,-460.0,0.00016731,2]
[373316825,1752943840484,-460.0,0.00016731,2]
[373316827,1752943840493,-460.0,0.00016731,2]
[373316829,1752943840503,-460.0,0.00016731,2]
[373316831,1752943840513,-460.0,0.00016731,2]
[373316834,1752943840522,-460.0,0.00016731,2]
[373316836,1752943840532,-460.0,0.00016731,2]
[373316838,1752943840541,-460.0,0.00016731,2]
[373316839,1752943840551,-460.0,0.00016731,2]
[373316841,1752943840561,-460.0,0.00016731,2]
[373316843,1752943840570,-460.0,0.00016731,2]
[373316846,1752943840581,-460.0,0.00016731,2]
[373316848,1752943840590,-460.0,0.00016731,2]
[373316850,1752943840600,-460.0,0.00016731,2]
[373316852,1752943840610,-460.0,0.00016731,2]
[373316854,1752943840619,-460.0,0.00016731,2]
[373316856,1752943840629,-192.01727641,0.00016731,2]
[373316858,1752943840638,-460.0,0.00016731,2]
[373316860,1752943840647,-460.0,0.00016731,2]
[373316862,1752943840657,-460.0,0.00016731,2]
[373316864,1752943840666,-461.51290468,0.00016731,2]
[373316866,1752943840676,-460.0,0.00016731,2]
[373316868,1752943840686,-460.0,0.00016731,2]
[373316870,1752943840695,-460.0,0.00016731,2]
[373316872,1752943840705,-460.0,0.00016731,2]
[373316874,1752943840715,-565.44,0.00016731,2]
[373316876,1752943840727,-151.0,0.00016831,2]
[373316878,1752943840737,-151.0,0.00016831,2]
[373316880,1752943840746,-381.717433,0.00016831,2]
[373316882,1752943840756,-565.44,0.00016832,2]
[373316884,1752943840767,-151.0,0.00016833,2]
[373316886,1752943840776,-151.0,0.00016833,2]
[373316888,1752943840786,-151.0,0.00016833,2]
[373316890,1752943840798,-151.0,0.00016833,2]
[373316892,1752943840808,-381.717433,0.00016833,2]
[373316894,1752943840818,-381.717433,0.00016833,2]
[373316896,1752943840830,-381.717433,0.00016833,2]
[373316898,1752943840840,-703.708869,0.00016833,2]
[373316900,1752943840850,-703.708869,0.00016833,2]
[373316902,1752943840860,-703.708869,0.00016833,2]
[373316904,1752943840870,-703.708869,0.00016833,2]
[373316906,1752943840880,-151.0,0.000169,2]
[373316908,1752943840890,-151.0,0.000169,2]
[373316910,1752943840900,-381.717433,0.000169,2]
[373316912,1752943840911,-381.717433,0.000169,2]
[373316914,1752943840921,-6062.6198859,0.000169,2]
[373316916,1752943840936,-573.07,0.00016903,2]
[373316918,1752943840946,-1199.35,0.00016903,2]
[373316920,1752943840956,-461.05925241,0.00016904,2]
[373316922,1752943840966,-460.0,0.00016904,2]
[373316924,1752943840975,-618.24,0.00016904,2]
[373316926,1752943840987,-460.0,0.00016905,2]
[373316928,1752943840997,-386.86954409,0.00016905,2]
[373316930,1752943841007,-460.0,0.00016905,2]
[373316932,1752943841016,-460.0,0.00016905,2]
[373316934,1752943841026,-460.0,0.00016905,2]
[373316936,1752943841036,-460.0,0.00016905,2]
[373316939,1752943841046,-460.0,0.00016905,2]
[373316941,1752943841057,-460.0,0.00016905,2]
[373316943,1752943841067,-460.0,0.00016905,2]
[373316945,1752943841081,-460.0,0.00016905,2]
[373316947,1752943841091,-1170.39,0.00016905,2]
[373316954,1752943841230,-460.0,0.00016905,2]
[373316955,1752943841241,-525.57,0.00016905,2]
[373316956,1752943841251,-460.0,0.00016905,2]
[373316957,1752943841261,-888.54,0.00016905,2]
[373316958,1752943841271,-460.0,0.00016905,2]
[373316959,1752943841281,-460.0,0.00016905,2]
[373316960,1752943841291,-460.0,0.00016905,2]
[373316961,1752943841302,-460.0,0.00016905,2]
[373316962,1752943841311,-460.0,0.00016905,2]
[373316963,1752943841326,-460.0,0.00016905,2]
[373316964,1752943841336,-460.0,0.00016905,2]
[373316965,1752943841346,-460.0,0.00016905,2]
[373316966,1752943841355,-460.0,0.00016905,2]
[373316967,1752943841365,-460.0,0.00016905,2]
[373316968,1752943841375,-460.0,0.00016905,2]
[373316969,1752943841384,-565.44,0.00016905,2]
[373316970,1752943841394,-565.44,0.00016905,2]
[373316972,1752943841403,-565.44,0.00016905,2]
[373316974,1752943841413,-565.44,0.00016905,2]
[373316976,1752943841423,-565.58,0.00016905,2]
[373316978,1752943841432,-460.0,0.00016906,2]
[373316980,1752943841442,-174.18791115,0.00016906,2]
[373316982,1752943841451,-460.0,0.00016906,2]
[373316984,1752943841461,-460.0,0.00016906,2]
[373316986,1752943841471,-460.0,0.00016906,2]
[373316988,1752943841480,-460.0,0.00016906,2]
[373316990,1752943841490,-460.0,0.00016906,2]
[373316992,1752943841499,-460.0,0.00016906,2]
[373316994,1752943841508,-565.63938079,0.00016906,2]
[373316996,1752943841517,-460.0,0.00016906,2]
[373316998,1752943841527,-460.0,0.00016906,2]
[373317000,1752943841536,-457.05616723,0.00016906,2]
[373317002,1752943841545,-460.0,0.00016906,2]
[373317004,1752943841555,-460.0,0.00016906,2]
[373317006,1752943841564,-460.0,0.00016906,2]
[373317008,1752943841574,-460.0,0.00016906,2]
[373317010,1752943841583,-460.0,0.00016906,2]
[373317012,1752943841592,-460.0,0.00016906,2]
[373317014,1752943841602,-460.0,0.00016906,2]
[373317016,1752943841611,-606.41,0.00016906,2]
[373317018,1752943841621,-198.11978747,0.00016906,2]
[373317020,1752943841630,-460.0,0.00016906,2]
[373317022,1752943841639,-460.0,0.00016906,2]
[373317024,1752943841649,-460.0,0.00016906,2]
[373317026,1752943841658,-460.0,0.00016906,2]
[373317028,1752943841668,-460.0,0.00016906,2]
[373317030,1752943841678,-460.0,0.00016906,2]
[373317032,1752943841687,-460.0,0.00016906,2]
[373317034,1752943841697,-460.0,0.00016906,2]
[373317036,1752943841707,-1762.36,0.00016906,2]
[373317038,1752943841716,-460.0,0.00016906,2]
[373317040,1752943841729,-575.61,0.00016906,2]
[373317042,1752943841738,-417.97343759,0.00016906,2]
[373317044,1752943841747,-468.29,0.00016906,2]
[373317046,1752943841756,-460.0,0.00016906,2]
[373317048,1752943841767,-460.0,0.00016906,2]
[373317050,1752943841776,-460.0,0.00016906,2]
[373317052,1752943841785,-460.0,0.00016906,2]
[373317053,1752943841797,-460.0,0.00016906,2]
[373317056,1752943841806,-750.54,0.00016906,2]
[373317058,1752943841816,-460.0,0.00016906,2]
[373317060,1752943841828,-460.0,0.00016906,2]
[373317062,1752943841837,-460.0,0.00016906,2]
[373317063,1752943841847,-460.0,0.00016906,2]
[373317066,1752943841856,-460.0,0.00016906,2]
[373317067,1752943841866,-460.0,0.00016906,2]
[373317070,1752943841876,-574.55,0.00016906,2]
[373317071,1752943841886,-535.96,0.00016906,2]
[373317073,1752943841895,-460.0,0.00016906,2]
[373317076,1752943841905,-460.0,0.00016906,2]
[373317078,1752943841915,-703.708869,0.00016932,2]
[373317079,1752943841924,-703.708869,0.00016932,2]
[373317082,1752943841935,-460.0,0.00017005,2]
[373317084,1752943841944,-258.82693295,0.00017005,2]
[373317086,1752943841955,-260.06843263,0.00017005,2]
[373317088,1752943841965,-460.0,0.00017005,2]
[373317090,1752943841975,-460.0,0.00017005,2]
[373317092,1752943841984,-460.0,0.00017005,2]
[373317094,1752943841993,-460.0,0.00017005,2]
[373317096,1752943842003,-460.0,0.00017005,2]
[373317098,1752943842012,-460.0,0.00017005,2]
[373317099,1752943842022,-460.0,0.00017005,2]
[373317102,1752943842032,-460.0,0.00017005,2]
[373317104,1752943842042,-263.18766542,0.00017005,2]
[373317106,1752943842051,-460.0,0.00017005,2]
[373317108,1752943842060,-460.0,0.00017005,2]
[373317109,1752943842069,-460.0,0.00017005,2]
[373317111,1752943842080,-460.0,0.00017005,2]
[373317114,1752943842090,-460.0,0.00017005,2]
[373317115,1752943842099,-460.0,0.00017005,2]
[373317117,1752943842110,-581.12127644,0.00017005,2]
[373317119,1752943842119,-460.0,0.00017005,2]
[373317122,1752943842129,-460.0,0.00017005,2]
[373317124,1752943842138,-460.0,0.00017005,2]
[373317126,1752943842148,-151.0,0.00017005,2]
[373317128,1752943842157,-151.0,0.00017005,2]
[373317130,1752943842166,-460.0,0.00017005,2]
[373317131,1752943842176,-460.0,0.00017005,2]
[373317134,1752943842185,-151.0,0.00017005,2]
[373317136,1752943842195,-374.17503605,0.00017005,2]
[373317138,1752943842204,-460.0,0.00017005,2]
[373317139,1752943842214,-159.20314097,0.00017005,2]
[373317142,1752943842224,-460.0,0.00017005,2]
[373317143,1752943842233,-460.0,0.00017005,2]
[373317146,1752943842243,-151.0,0.00017005,2]
[373317147,1752943842252,-151.0,0.00017005,2]
[373317149,1752943842262,-151.0,0.00017005,2]
[373317151,1752943842271,-175.627756,0.00017005,2]
[373317154,1752943842282,-175.627756,0.00017005,2]
[373317156,1752943842291,-151.0,0.00017006,2]
[373317158,1752943842301,-151.0,0.00017006,2]
[373317160,1752943842311,-381.717433,0.00017105,2]
[373317162,1752943842321,-381.717433,0.00017105,2]
[373317164,1752943842331,-703.708869,0.00017106,2]
[373317166,1752943842340,-703.708869,0.00017106,2]
[373317168,1752943842350,-225.03,0.00017107,2]
[373317170,1752943842359,-298.136765,0.00017107,2]
[373317172,1752943842369,-381.717433,0.00017107,2]
[373317174,1752943842378,-381.717433,0.00017107,2]
[373317176,1752943842387,-703.708869,0.00017107,2]
[373317178,1752943842397,-703.708869,0.00017107,2]
[373317180,1752943842406,-1199.35,0.00017177,2]
[373317182,1752943842416,-460.0,0.00017178,2]
[373317184,1752943842425,-618.24,0.00017178,2]
[373317186,1752943842435,-460.0,0.00017179,2]
[373317188,1752943842444,-465.47598296,0.00017179,2]
[373317190,1752943842454,-152.40871687,0.00017179,2]
[373317192,1752943842463,-460.0,0.00017179,2]
[373317194,1752943842474,-460.0,0.00017179,2]
[373317196,1752943842483,-460.0,0.00017179,2]
[373317198,1752943842492,-460.0,0.00017179,2]
[373317200,1752943842502,-1170.39,0.00017179,2]
[373317202,1752943842512,-460.0,0.00017179,2]
[373317204,1752943842522,-525.57,0.00017179,2]
[373317206,1752943842532,-460.0,0.00017179,2]
[373317208,1752943842541,-888.54,0.00017179,2]
[373317210,1752943842551,-460.0,0.00017179,2]
[373317212,1752943842560,-460.0,0.00017179,2]
[373317214,1752943842570,-460.0,0.00017179,2]
[373317216,1752943842581,-460.0,0.00017179,2]
[373317218,1752943842591,-460.0,0.00017179,2]
[373317220,1752943842600,-268.31188083,0.00017179,2]
[373317222,1752943842609,-460.0,0.00017179,2]
[373317224,1752943842618,-460.0,0.00017179,2]
[373317226,1752943842628,-460.0,0.0001718,2]
[373317228,1752943842638,-460.0,0.0001718,2]
[373317230,1752943842652,-460.0,0.0001718,2]
[373317232,1752943842661,-460.0,0.0001718,2]
[373317234,1752943842671,-460.0,0.0001718,2]
[373317236,1752943842680,-460.0,0.0001718,2]
[373317238,1752943842689,-460.0,0.0001718,2]
[373317240,1752943842699,-460.0,0.0001718,2]
[373317242,1752943842708,-460.0,0.0001718,2]
[373317244,1752943842722,-460.0,0.0001718,2]
[373317246,1752943842731,-460.0,0.0001718,2]
[373317248,1752943842741,-460.0,0.0001718,2]
[373317251,1752943842750,-460.0,0.0001718,2]
[373317253,1752943842760,-460.0,0.0001718,2]
[373317255,1752943842771,-606.41,0.0001718,2]
[373317256,1752943842781,-460.0,0.0001718,2]
[373317258,1752943842790,-460.0,0.0001718,2]
[373317260,1752943842800,-460.0,0.0001718,2]
[373317262,1752943842811,-460.0,0.0001718,2]
[373317264,1752943842821,-460.0,0.0001718,2]
[373317266,1752943842832,-460.0,0.0001718,2]
[373317268,1752943842841,-460.0,0.0001718,2]
[373317271,1752943842851,-460.0,0.0001718,2]
[373317273,1752943842861,-1762.36,0.0001718,2]
[373317275,1752943842871,-460.0,0.0001718,2]
[373317277,1752943842880,-575.61,0.0001718,2]
[373317279,1752943842889,-468.29,0.0001718,2]
[373317280,1752943842899,-460.0,0.0001718,2]
[373317282,1752943842908,-460.0,0.0001718,2]
[373317285,1752943842918,-460.0,0.0001718,2]
[373317286,1752943842927,-460.0,0.0001718,2]
[373317289,1752943842937,-750.54,0.0001718,2]
[373317291,1752943842947,-460.0,0.0001718,2]
[373317293,1752943842956,-460.0,0.0001718,2]
[373317295,1752943842966,-460.0,0.0001718,2]
[373317297,1752943842976,-460.0,0.0001718,2]
[373317299,1752943842986,-574.55,0.0001718,2]
[373317301,1752943842995,-460.0,0.0001718,2]
[373317303,1752943843005,-6062.61988568,0.0001721,2]
[373317305,1752943843014,-1000.0,0.00017221,2]
[373317309,1752943843034,-381.717433,0.00017229,2]
[373317311,1752943843045,-381.717433,0.00017229,2]
[373317313,1752943843055,-460.0,0.00017279,2]
[373317315,1752943843065,-463.69,0.00017279,2]
[373317317,1752943843075,-460.0,0.00017279,2]
[373317319,1752943843085,-460.0,0.00017279,2]
[373317321,1752943843094,-460.0,0.00017279,2]
[373317323,1752943843104,-460.0,0.00017279,2]
[373317325,1752943843114,-460.0,0.00017279,2]
[373317328,1752943843124,-460.0,0.00017279,2]
[373317329,1752943843134,-460.0,0.00017279,2]
[373317332,1752943843144,-460.0,0.00017279,2]
[373317334,1752943843153,-460.0,0.00017279,2]
[373317336,1752943843163,-460.0,0.00017279,2]
[373317338,1752943843173,-460.0,0.00017279,2]
[373317340,1752943843183,-460.0,0.00017279,2]
[373317342,1752943843192,-460.0,0.00017279,2]
[373317344,1752943843202,-460.0,0.00017279,2]
[373317346,1752943843211,-500.0,0.00017314,2]
[373317348,1752943843221,-442.4405286,0.00017379,2]
[373317350,1752943843231,-703.708869,0.00017379,2]
[373317352,1752943843240,-703.708869,0.00017379,2]
[373317354,1752943843250,-381.717433,0.00017381,2]
[373317356,1752943843259,-381.717433,0.00017381,2]
[373317358,1752943843269,-500.0,0.00017434,2]
[373317360,1752943843279,-1199.35,0.00017451,2]
[373317362,1752943843289,-460.0,0.00017452,2]
[373317364,1752943843298,-618.24,0.00017452,2]
[373317366,1752943843308,-460.0,0.00017453,2]
[373317368,1752943843318,-1170.39,0.00017453,2]
[373317370,1752943843328,-460.0,0.00017453,2]
[373317372,1752943843338,-525.57,0.00017453,2]
[373317374,1752943843348,-460.0,0.00017453,2]
[373317376,1752943843357,-888.54,0.00017453,2]
[373317378,1752943843367,-460.0,0.00017453,2]
[373317380,1752943843376,-531.77478659,0.00017453,2]
[373317382,1752943843386,-460.0,0.00017453,2]
[373317384,1752943843396,-249.24,0.00017453,2]
[373317386,1752943843405,-460.0,0.00017453,2]
[373317388,1752943843415,-169.81,0.00017453,2]
[373317390,1752943843424,-460.0,0.00017453,2]
[373317392,1752943843434,-460.0,0.00017454,2]
[373317394,1752943843444,-460.0,0.00017454,2]
[373317396,1752943843453,-475.11,0.00017454,2]
[373317398,1752943843463,-460.0,0.00017454,2]
[373317400,1752943843473,-460.0,0.00017454,2]
[373317402,1752943843483,-460.0,0.00017454,2]
[373317404,1752943843492,-462.87,0.00017454,2]
[373317406,1752943843502,-460.0,0.00017454,2]
[373317408,1752943843512,-460.0,0.00017454,2]
[373317410,1752943843521,-460.0,0.00017454,2]
[373317412,1752943843531,-606.41,0.00017454,2]
[373317414,1752943843540,-460.0,0.00017454,2]
[373317416,1752943843550,-460.0,0.00017454,2]
[373317418,1752943843560,-460.0,0.00017454,2]
[373317420,1752943843570,-460.0,0.00017454,2]
[373317422,1752943843580,-1762.36,0.00017454,2]
[373317424,1752943843591,-460.0,0.00017454,2]
[373317426,1752943843601,-575.61,0.00017454,2]
[373317428,1752943843611,-468.29,0.00017454,2]
[373317430,1752943843620,-460.0,0.00017454,2]
[373317432,1752943843630,-460.0,0.00017454,2]
[373317435,1752943843639,-460.0,0.00017454,2]
[373317437,1752943843653,-151.0,0.00017454,2]
[373317439,1752943843663,-460.0,0.00017454,2]
[373317441,1752943843672,-750.54,0.00017454,2]
[373317443,1752943843682,-460.0,0.00017454,2]
[373317445,1752943843692,-460.0,0.00017454,2]
[373317447,1752943843702,-460.0,0.00017454,2]
[373317449,1752943843711,-460.0,0.00017454,2]
[373317451,1752943843724,-574.55,0.00017454,2]
[373317453,1752943843734,-495.64,0.00017454,2]
[373317455,1752943843744,-6062.61988568,0.00017521,2]
[373317457,1752943843755,-703.708869,0.00017521,2]
[373317460,1752943843767,-703.708869,0.00017521,2]
[373317462,1752943843780,-460.0,0.00017553,2]
[373317464,1752943843800,-460.0,0.00017553,2]
[373317466,1752943843810,-460.0,0.00017553,2]
[373317468,1752943843820,-460.0,0.00017553,2]
[373317470,1752943843830,-460.0,0.00017553,2]
[373317472,1752943843841,-460.0,0.00017553,2]
[373317474,1752943843851,-460.0,0.00017553,2]
[373317476,1752943843861,-460.0,0.00017553,2]
[373317478,1752943843871,-151.0,0.00017553,2]
[373317480,1752943843881,-151.0,0.00017553,2]
[373317482,1752943843891,-175.627756,0.00017553,2]
[373317484,1752943843902,-175.627756,0.00017553,2]
[373317486,1752943843911,-381.717433,0.00017578,2]
[373317488,1752943843921,-381.717433,0.00017578,2]
[373317490,1752943843931,-703.708869,0.00017654,2]
[373317493,1752943843941,-703.708869,0.00017654,2]
[373317495,1752943843951,-151.0,0.00017654,2]
[373317497,1752943843962,-151.0,0.00017654,2]
[373317499,1752943843971,-151.0,0.00017654,2]
[373317501,1752943843981,-1199.35,0.00017725,2]
[373317503,1752943843991,-460.0,0.00017726,2]
[373317505,1752943844001,-618.24,0.00017726,2]
[373317507,1752943844011,-460.0,0.00017727,2]
[373317509,1752943844020,-1170.39,0.00017727,2]
[373317511,1752943844030,-460.0,0.00017727,2]
[373317513,1752943844040,-525.57,0.00017727,2]
[373317515,1752943844050,-460.0,0.00017727,2]
[373317517,1752943844060,-888.54,0.00017727,2]
[373317519,1752943844069,-460.0,0.00017727,2]
[373317521,1752943844078,-460.0,0.00017727,2]
[373317523,1752943844088,-460.0,0.00017727,2]
[373317525,1752943844097,-460.0,0.00017727,2]
[373317527,1752943844107,-460.0,0.00017728,2]
[373317529,1752943844119,-460.0,0.00017728,2]
[373317532,1752943844129,-460.0,0.00017728,2]
[373317534,1752943844140,-460.0,0.00017728,2]
[373317536,1752943844149,-460.0,0.00017728,2]
[373317538,1752943844158,-460.0,0.00017728,2]
[373317540,1752943844168,-460.0,0.00017728,2]
[373317542,1752943844178,-606.41,0.00017728,2]
[373317561,1752943844347,-460.0,0.00017728,2]
[373317563,1752943844357,-460.0,0.00017728,2]
[373317565,1752943844367,-460.0,0.00017728,2]
[373317567,1752943844377,-460.0,0.00017728,2]
[373317569,1752943844386,-1762.36,0.00017728,2]
[373317572,1752943844397,-460.0,0.00017728,2]
[373317574,1752943844407,-575.61,0.00017728,2]
[373317576,1752943844416,-468.29,0.00017728,2]
[373317578,1752943844424,-460.0,0.00017728,2]
[373317580,1752943844434,-291.0447832,0.00017728,2]
[373317582,1752943844443,-460.0,0.00017728,2]
[373317584,1752943844451,-460.0,0.00017728,2]
[373317586,1752943844460,-750.54,0.00017728,2]
[373317588,1752943844468,-460.0,0.00017728,2]
[373317590,1752943844477,-460.0,0.00017728,2]
[373317592,1752943844486,-460.0,0.00017728,2]
[373317594,1752943844495,-574.55,0.00017728,2]
[373317596,1752943844505,-450.02941972,0.00017776,2]
[373317598,1752943844514,-460.0,0.00017827,2]
[373317600,1752943844523,-460.0,0.00017827,2]
[373317602,1752943844533,-460.0,0.00017827,2]
[373317604,1752943844542,-460.0,0.00017827,2]
[373317606,1752943844551,-460.0,0.00017827,2]
[373317608,1752943844561,-595.56806391,0.00017827,2]
[373317610,1752943844570,-334.3282315,0.00017827,2]
[373317612,1752943844579,-460.0,0.00017827,2]
[373317614,1752943844589,-381.717433,0.00017828,2]
[373317616,1752943844599,-381.717431,0.00017828,2]
[373317618,1752943844608,-6062.61988568,0.00017831,2]
[373317620,1752943844617,-703.708869,0.00017922,2]